bitfinex/quotes_BTCUSD_20250601
["timestamp","ask_amount","ask_price","bid_price","bid_amount"]
[1748767304343,1.05736565,104370.0,104360.0,0.11221527]
[1748767304757,1.05736565,104370.0,104360.0,0.08528138]
[1748767304981,1.05736565,104370.0,104360.0,0.1122153]
[1748767305199,1.05736565,104370.0,104360.0,0.10548182]
[1748767305378,1.05736565,104370.0,104360.0,0.0942697]
[1748767305558,1.05736565,104370.0,104360.0,0.06060221]
[1748767305760,1.05736565,104370.0,104360.0,0.09426972]
[1748767306773,1.05736565,104370.0,104360.0,0.09426973]
[1748767307090,1.05736565,104370.0,104360.0,0.09426974]
[1748767307276,1.05736565,104370.0,104360.0,0.09426976]
[1748767307524,1.05736565,104370.0,104360.0,0.09426987]
[1748767307728,1.05736565,104370.0,104360.0,0.09426978]
[1748767308356,1.05736565,104370.0,104360.0,0.06060221]
[1748767308532,1.05736565,104370.0,104360.0,0.09426986]
[1748767308781,1.07346565,104370.0,104360.0,0.09426989]
[1748767308991,1.07346565,104370.0,104360.0,0.09426992]
[1748767309208,1.07346565,104370.0,104360.0,0.09426991]
[1748767309376,1.08846565,104370.0,104360.0,0.07855833]
[1748767309581,1.08846565,104370.0,104360.0,0.06733573]
[1748767309804,1.08846565,104370.0,104360.0,0.09426982]
[1748767310049,0.70598565,104370.0,104360.0,0.08529179]
[1748767310269,0.70598565,104370.0,104360.0,0.09426986]
[1748767310270,1.08842565,104370.0,104360.0,0.09426986]
[1748767311007,1.08842565,104370.0,104360.0,0.09426988]
[1748767311215,1.08842565,104370.0,104360.0,0.09426983]
[1748767311645,1.08842565,104370.0,104360.0,0.08753631]
[1748767311857,1.08842565,104370.0,104360.0,0.09426969]
[1748767312064,1.08842565,104370.0,104360.0,0.09426968]
[1748767312293,1.08842565,104370.0,104360.0,0.09426969]
[1748767312498,1.08842565,104370.0,104360.0,0.09426985]
[1748767312701,1.08842565,104370.0,104360.0,0.09426982]
[1748767312892,1.08842565,104370.0,104360.0,0.06060221]
[1748767313093,1.08842565,104370.0,104360.0,0.09426982]
[1748767313690,1.08842565,104370.0,104360.0,0.09426986]
[1748767314065,1.08842565,104370.0,104360.0,0.09426985]
[1748767314210,1.08842565,104370.0,104360.0,0.06733574]
[1748767314434,1.08842565,104370.0,104360.0,0.07631373]
[1748767314642,1.07342565,104370.0,104360.0,0.09426975]
[1748767314838,1.05732565,104370.0,104360.0,0.07631373]
[1748767315043,1.05732565,104370.0,104360.0,0.09426975]
[1748767315237,1.05732565,104370.0,104360.0,0.09426972]
[1748767315616,1.05732565,104370.0,104360.0,0.06060221]
[1748767315822,1.05732565,104370.0,104360.0,0.09426972]
[1748767316231,1.05732565,104370.0,104360.0,0.08529172]
[1748767316429,1.05732565,104370.0,104360.0,0.09426972]
[1748767316838,0.76460565,104370.0,104360.0,0.08529172]
[1748767317129,1.05732565,104370.0,104360.0,0.09426968]
[1748767317370,0.76460565,104370.0,104360.0,0.09426971]
[1748767317570,1.05732565,104370.0,104360.0,0.09426964]
[1748767317722,1.05732565,104370.0,104360.0,0.09426951]
[1748767318120,0.76460565,104370.0,104360.0,0.28591381]
[1748767318321,0.76460565,104370.0,104360.0,0.29549593]
[1748767318322,0.97105255,104370.0,104360.0,0.29549593]
[1748767318522,0.97105255,104370.0,104360.0,0.0852818]
[1748767318722,0.97105255,104370.0,104360.0,0.09425607]
[1748767318920,0.97105255,104370.0,104360.0,0.09425584]
[1748767319133,0.97105255,104370.0,104360.0,0.07630725]
[1748767319326,0.97105255,104370.0,104360.0,0.07855081]
[1748767319541,0.97105255,104370.0,104360.0,0.06060221]
[1748767319942,0.97105255,104370.0,104360.0,0.06733286]
[1748767320141,0.97105255,104370.0,104360.0,0.08528139]
[1748767320346,0.97105255,104370.0,104360.0,0.0785508]
[1748767320544,0.97105255,104370.0,104360.0,0.06733293]
[1748767320750,0.97105255,104370.0,104360.0,0.06060221]
[1748767321714,0.97105255,104370.0,104360.0,0.06957639]
[1748767321919,0.97105255,104370.0,104360.0,0.07855055]
[1748767322116,0.97105255,104370.0,104360.0,0.06733283]
[1748767322349,0.97105255,104370.0,104360.0,0.08752469]
[1748767322560,0.97105255,104370.0,104360.0,0.09425508]
[1748767322771,0.97105255,104370.0,104360.0,0.09425511]
[1748767322999,0.97105255,104370.0,104360.0,0.09425123]
[1748767323207,0.97105255,104370.0,104360.0,0.07854836]
[1748767323454,0.97105255,104370.0,104360.0,0.09425116]
[1748767323662,0.97105255,104370.0,104360.0,0.09425131]
[1748767324111,0.97105255,104370.0,104360.0,0.09425126]
[1748767324659,0.97105255,104370.0,104360.0,0.06060221]
[1748767324859,0.97105255,104370.0,104360.0,0.09425066]
[1748767325056,0.97105255,104370.0,104360.0,0.09425067]
[1748767325260,0.97105255,104370.0,104360.0,0.09424827]
[1748767325464,0.97105255,104370.0,104360.0,0.09424826]
[1748767326009,0.97105255,104370.0,104360.0,0.09424788]
[1748767326213,0.97105255,104370.0,104360.0,0.0852757]
[1748767326427,0.97105255,104370.0,104360.0,0.0942479]
[1748767326556,0.97105255,104370.0,104360.0,0.06060221]
[1748767326773,0.97105255,104370.0,104360.0,0.06733091]
[1748767326972,0.98625255,104370.0,104360.0,0.09424571]
[1748767327172,0.69353255,104370.0,104360.0,0.09424564]
[1748767327433,0.98621255,104370.0,104360.0,0.09424564]
[1748767327636,1.00241255,104370.0,104360.0,0.09424564]
[1748767328012,1.00241255,104370.0,104360.0,0.0942449]
[1748767328210,1.00241255,104370.0,104360.0,0.08751584]
[1748767328440,1.00241255,104370.0,104360.0,0.09424425]
[1748767328657,1.00241255,104370.0,104360.0,0.06060221]
[1748767328862,1.00241255,104370.0,104360.0,0.09424327]
[1748767329269,1.00241255,104370.0,104360.0,0.07630137]
[1748767329476,1.00241255,104370.0,104360.0,0.09424327]
[1748767329809,1.00241255,104370.0,104360.0,0.06060221]
[1748767330018,1.00241255,104370.0,104360.0,0.06957296]
[1748767330221,1.00241255,104370.0,104360.0,0.09424253]
[1748767330714,1.00241255,104370.0,104360.0,0.09424178]
[1748767331676,0.98621255,104370.0,104360.0,0.06060221]
[1748767332085,0.97101255,104370.0,104360.0,0.09424111]
[1748767332297,0.97097255,104370.0,104360.0,0.07630036]
[1748767332517,0.97097255,104370.0,104360.0,0.09424114]
[1748767332958,0.97097255,104370.0,104360.0,0.09424085]
[1748767333345,0.97097255,104370.0,104360.0,0.0875131]
[1748767333612,0.97097255,104370.0,104360.0,0.09424073]
[1748767333830,0.67833255,104370.0,104360.0,0.09424066]
[1748767334163,0.97097255,104370.0,104360.0,0.09424039]
[1748767334366,0.97097255,104370.0,104360.0,0.09424021]
[1748767335088,0.97097255,104370.0,104360.0,0.09424036]
[1748767335266,0.97097255,104370.0,104360.0,0.06732987]
[1748767335418,0.97097255,104370.0,104360.0,0.09424045]
[1748767335642,0.97097255,104370.0,104360.0,0.09424049]
[1748767336148,0.97097255,104370.0,104360.0,0.09424057]
[1748767336971,0.97097255,104370.0,104360.0,0.09424067]
[1748767337172,0.97097255,104370.0,104360.0,0.07630014]
[1748767337418,0.97097255,104370.0,104360.0,0.09424069]
[1748767337582,0.97097255,104370.0,104360.0,0.09424084]
[1748767337779,0.97097255,104370.0,104360.0,0.09424132]
[1748767338815,0.97097255,104370.0,104360.0,0.0942414]
[1748767339259,0.97097255,104370.0,104360.0,0.09424167]
[1748767339474,0.97097255,104370.0,104360.0,0.0942419]
[1748767339656,0.97097255,104370.0,104360.0,0.09424213]
[1748767339819,0.97097255,104370.0,104360.0,0.0942423]
[1748767340035,0.97097255,104370.0,104360.0,0.09424276]
[1748767340235,0.97097255,104370.0,104360.0,0.09424269]
[1748767340459,0.97097255,104370.0,104360.0,0.09424255]
[1748767340662,0.97097255,104370.0,104360.0,0.09424259]
[1748767341027,0.97097255,104370.0,104360.0,0.08751444]
[1748767341220,0.97097255,104370.0,104360.0,0.06060221]
[1748767341429,0.97097255,104370.0,104360.0,0.09424373]
[1748767341746,0.97097255,104370.0,104360.0,0.09424401]
[1748767342434,0.97097255,104370.0,104360.0,0.08751647]
[1748767342771,0.97097255,104370.0,104360.0,0.0695741]
[1748767343177,0.97097255,104370.0,104360.0,0.06060221]
[1748767343534,0.67833255,104370.0,104360.0,0.09424677]
[1748767343739,0.97093255,104370.0,104360.0,0.09424677]
[1748767344267,0.97093255,104370.0,104360.0,0.08751786]
[1748767344470,0.97093255,104370.0,104360.0,0.08751826]
[1748767344603,0.97093255,104370.0,104360.0,0.09424944]
[1748767344818,0.97093255,104370.0,104360.0,0.08527788]
[1748767345044,0.97093255,104370.0,104360.0,0.0942509]
[1748767345242,0.88121255,104370.0,104360.0,0.09425103]
[1748767345929,0.88121255,104370.0,104360.0,0.09425501]
[1748767346132,0.88121255,104370.0,104360.0,0.094255]
[1748767346544,0.88121255,104370.0,104360.0,0.09425498]
[1748767347154,0.88121255,104370.0,104360.0,0.09425503]
[1748767347597,0.88121255,104370.0,104360.0,0.07630699]
[1748767347799,0.88121255,104370.0,104360.0,0.0763086]
[1748767348150,0.88121255,104370.0,104360.0,0.09426342]
[1748767348502,0.88121255,104370.0,104360.0,0.06733445]
[1748767348842,0.88121255,104370.0,104360.0,0.09426362]
[1748767349251,0.88121255,104370.0,104360.0,0.09426363]
[1748767349918,0.88121255,104370.0,104360.0,0.09426361]
[1748767351245,0.88121255,104370.0,104360.0,0.09426347]
[1748767351709,0.88121255,104370.0,104360.0,0.06060221]
[1748767351910,0.88121255,104370.0,104360.0,0.07855435]
[1748767352100,0.88121255,104370.0,104360.0,0.09426249]
[1748767353100,0.88121255,104370.0,104360.0,0.09426247]
[1748767353323,0.88121255,104370.0,104360.0,0.09426255]
[1748767353538,0.88121255,104370.0,104360.0,0.09426245]
[1748767354404,0.88121255,104370.0,104360.0,0.0942624]
[1748767354641,0.88121255,104370.0,104360.0,0.09426237]
[1748767355077,0.97081255,104370.0,104360.0,0.09426234]
[1748767355287,0.97081255,104370.0,104360.0,0.09426243]
[1748767355795,0.97081255,104370.0,104360.0,0.08753033]
[1748767356014,0.9870401,104370.0,104360.0,0.09426236]
[1748767356348,0.97081255,104370.0,104360.0,0.09425592]
[1748767356532,0.97081255,104370.0,104360.0,0.0942546]
[1748767356665,0.97081255,104370.0,104360.0,0.07630595]
[1748767356880,0.97081255,104370.0,104360.0,0.09425093]
[1748767357087,0.97081255,104370.0,104360.0,0.09424785]
[1748767357713,0.97081255,104370.0,104360.0,0.07630507]
[1748767357937,0.97081255,104370.0,104360.0,0.09424487]
[1748767358326,0.97081255,104370.0,104360.0,0.09424488]
[1748767358558,0.97081255,104370.0,104360.0,0.09424486]
[1748767358994,0.97081255,104370.0,104360.0,0.09424487]
[1748767359125,0.97081255,104370.0,104360.0,0.09424476]
[1748767360056,0.97081255,104370.0,104360.0,0.06733074]
[1748767360295,0.97081255,104370.0,104360.0,0.08527336]
[1748767360512,0.97081255,104370.0,104360.0,0.09424467]
[1748767360735,0.97081255,104370.0,104360.0,0.09424459]
[1748767361354,0.97081255,104370.0,104360.0,0.09424456]
[1748767361551,0.97081255,104370.0,104360.0,0.09424452]
[1748767361792,0.97081255,104370.0,104360.0,0.29547102]
[1748767362022,0.97081255,104370.0,104360.0,0.30505314]
[1748767362504,0.97081255,104370.0,104360.0,0.305053]
[1748767363568,0.97081255,104370.0,104360.0,0.30505227]
[1748767363775,0.97081255,104370.0,104360.0,0.28038183]
[1748767363979,0.97081255,104370.0,104360.0,0.30505165]
[1748767364604,0.97081255,104370.0,104360.0,0.30505135]
[1748767364801,0.97081255,104370.0,104360.0,0.30505134]
[1748767365224,0.97081255,104370.0,104360.0,0.30505133]
[1748767365429,0.97081255,104370.0,104360.0,0.3050513]
[1748767365570,0.97081255,104370.0,104360.0,0.30505131]
[1748767365778,0.97081255,104370.0,104360.0,0.30505122]
[1748767366417,0.97081255,104370.0,104360.0,0.27813889]
[1748767366610,0.97081255,104370.0,104360.0,0.30505102]
[1748767367071,0.97081255,104370.0,104360.0,0.30505101]
[1748767367270,0.97081255,104370.0,104360.0,0.30505096]
[1748767367687,0.97081255,104370.0,104360.0,0.30505095]
[1748767367861,0.97081255,104370.0,104360.0,0.29832294]
[1748767368061,0.97081255,104370.0,104360.0,0.30505095]
[1748767368259,0.97081255,104370.0,104360.0,0.29546877]
[1748767368661,0.97081255,104370.0,104360.0,0.29546883]
[1748767369339,0.97081255,104370.0,104360.0,0.29546884]
[1748767369725,0.97081255,104370.0,104360.0,0.29546887]
[1748767369911,0.97081255,104370.0,104360.0,0.27752745]
[1748767370151,0.97081255,104370.0,104360.0,0.29546888]
[1748767370365,0.97081255,104370.0,104360.0,0.29546874]
[1748767370576,0.97081255,104370.0,104360.0,0.30505086]
[1748767370789,0.97081255,104370.0,104360.0,0.28710944]
[1748767370996,0.97081255,104370.0,104360.0,0.3050505]
[1748767371411,0.97081255,104370.0,104360.0,0.30505032]
[1748767371594,0.97081255,104370.0,104360.0,0.30505008]
[1748767371797,0.97081255,104370.0,104360.0,0.10382367]
[1748767372001,0.97081255,104370.0,104360.0,0.10382375]
[1748767372359,0.97081255,104370.0,104360.0,0.10382372]
[1748767372627,0.97081255,104370.0,104360.0,0.10382366]
[1748767373729,0.97081255,104370.0,104360.0,0.10382363]
[1748767373949,0.97081255,104370.0,104360.0,0.10382355]
[1748767374152,0.97081255,104370.0,104360.0,0.10382354]
[1748767374355,0.97081255,104370.0,104360.0,0.10382352]
[1748767374735,0.97081255,104370.0,104360.0,0.1038235]
[1748767375164,0.97081255,104370.0,104360.0,0.10382349]
[1748767375567,0.97081255,104370.0,104360.0,0.07688862]
[1748767375821,0.97081255,104370.0,104360.0,0.06730641]
[1748767376205,0.97081255,104370.0,104360.0,0.04997735]
[1748767376336,0.97081255,104370.0,104360.0,0.05894778]
[1748767376536,0.97081255,104370.0,104360.0,0.07688862]
[1748767376786,0.97081255,104370.0,104360.0,0.07688866]
[1748767376982,0.97081255,104370.0,104360.0,0.04324955]
[1748767377183,0.97081255,104370.0,104360.0,0.0768886]
[1748767377616,0.97081255,104370.0,104360.0,0.06791826]
[1748767377809,0.97081255,104370.0,104360.0,0.0768887]
[1748767377964,0.97081255,104370.0,104360.0,0.06791826]
[1748767378167,0.97081255,104370.0,104360.0,0.0768887]
[1748767378398,0.97081255,104370.0,104360.0,0.07688877]
[1748767379462,0.97081255,104370.0,104360.0,0.05894789]
[1748767379658,0.97081255,104370.0,104360.0,0.07688882]
[1748767379865,0.97081255,104370.0,104360.0,0.07688892]
[1748767380502,0.97081255,104370.0,104360.0,0.06730671]
[1748767380724,0.97081255,104370.0,104360.0,0.07688892]
[1748767381480,0.97081255,104370.0,104360.0,0.07688897]
[1748767381677,0.97081255,104370.0,104360.0,0.07688907]
[1748767382426,0.97081255,104370.0,104360.0,0.07688895]
[1748767382646,0.97081255,104370.0,104360.0,0.06119065]
[1748767382856,0.97081255,104370.0,104360.0,0.07688889]
[1748767383236,0.97081255,104370.0,104360.0,0.07688864]
[1748767383454,0.97081255,104370.0,104360.0,0.07688847]
[1748767383902,0.97081255,104370.0,104360.0,0.04324955]
[1748767384077,0.97081255,104370.0,104360.0,0.07016082]
[1748767384257,0.97081255,104370.0,104360.0,0.07688861]
[1748767384845,0.97081255,104370.0,104360.0,0.07688813]
[1748767385454,0.97081255,104370.0,104360.0,0.07688746]
[1748767386376,0.97081255,104370.0,104360.0,0.07688749]
[1748767386877,0.97081255,104370.0,104360.0,0.07688764]
[1748767387079,0.97081255,104370.0,104360.0,0.0589473]
[1748767387379,0.97081255,104370.0,104360.0,0.07688764]
[1748767387621,0.97081255,104370.0,104360.0,0.0768877]
[1748767388193,0.97081255,104370.0,104360.0,0.04324955]
[1748767388417,0.97081255,104370.0,104360.0,0.076888]
[1748767390972,0.97081255,104370.0,104360.0,0.05894761]
[1748767391128,0.97081255,104370.0,104360.0,0.07688845]
[1748767391337,1.00081255,104370.0,104360.0,0.07688845]
[1748767391597,1.00081255,104370.0,104360.0,0.07688873]
[1748767392922,1.00081255,104370.0,104360.0,0.07688901]
[1748767393086,1.00081255,104370.0,104360.0,0.26853331]
[1748767393545,1.00081255,104370.0,104360.0,0.26853329]
[1748767393970,1.00081255,104370.0,104360.0,0.25956276]
[1748767394180,1.00081255,104370.0,104360.0,0.26853326]
[1748767394294,1.00081255,104370.0,104360.0,0.26853325]
[1748767394495,1.00081255,104370.0,104360.0,0.26853326]
[1748767395189,1.00081255,104370.0,104360.0,0.25059224]
[1748767395445,1.00081255,104370.0,104360.0,0.26853324]
[1748767395659,1.00081255,104370.0,104360.0,0.25282033]
[1748767395801,1.00081255,104370.0,104360.0,0.25282035]
[1748767396264,1.00081255,104370.0,104360.0,0.26240246]
[1748767396717,1.00081255,104370.0,104360.0,0.26240263]
[1748767396858,1.00081255,104370.0,104360.0,0.27198466]
[1748767397998,1.00081255,104370.0,104360.0,0.25404362]
[1748767398205,1.00081255,104370.0,104360.0,0.2719848]
[1748767398422,1.00081255,104370.0,104360.0,0.26240276]
[1748767398879,1.00081255,104370.0,104360.0,0.06117634]
[1748767399059,1.00081255,104370.0,104360.0,0.0611764]
[1748767399609,1.00081255,104370.0,104360.0,0.06117708]
[1748767400176,1.00081255,104370.0,104360.0,0.25282136]
[1748767401190,1.00081255,104370.0,104360.0,0.2348798]
[1748767401474,1.00081255,104370.0,104360.0,0.25282144]
[1748767401652,1.00081255,104370.0,104360.0,0.25282145]
[1748767402074,1.00081255,104370.0,104360.0,0.26240358]
[1748767402461,1.00081255,104370.0,104360.0,0.26240368]
[1748767403051,1.00081255,104370.0,104360.0,0.26240365]
[1748767403256,1.00081255,104370.0,104360.0,0.27198568]
[1748767403597,1.00081255,104370.0,104360.0,0.27198569]
[1748767404253,1.00081255,104370.0,104360.0,0.24507321]
[1748767404463,1.00081255,104370.0,104360.0,0.27198576]
[1748767404659,1.00081255,104370.0,104360.0,0.25567561]
[1748767404864,1.00081255,104370.0,104360.0,0.26240376]
[1748767405076,1.00081255,104370.0,104360.0,0.26240381]
[1748767405274,1.00081255,104370.0,104360.0,0.25282171]
[1748767405508,1.00081255,104370.0,104360.0,0.26240383]
[1748767405709,1.00081255,104370.0,104360.0,0.22876306]
[1748767405839,1.00081255,104370.0,104360.0,0.26240398]
[1748767406043,0.98581255,104370.0,104360.0,0.26240398]
[1748767406249,0.98581255,104370.0,104360.0,0.26240387]
[1748767406468,0.98581255,104370.0,104360.0,0.26240377]
[1748767406690,0.97081255,104370.0,104360.0,0.26240363]
[1748767407076,0.97081255,104370.0,104360.0,0.26240369]
[1748767407481,0.97081255,104370.0,104360.0,0.26240368]
[1748767407842,0.67821255,104370.0,104360.0,0.26240368]
[1748767408080,0.97061255,104370.0,104360.0,0.22876306]
[1748767408384,0.97061255,104370.0,104360.0,0.26240361]
[1748767409301,0.97061255,104370.0,104360.0,0.26240359]
[1748767409510,0.97061255,104370.0,104360.0,0.26240366]
[1748767409726,0.97061255,104370.0,104360.0,0.26240365]
[1748767410938,0.97061255,104370.0,104360.0,0.27198549]
[1748767411145,0.67821255,104370.0,104360.0,0.21918094]
[1748767411320,0.97061255,104370.0,104360.0,0.26240303]
[1748767411627,0.97061255,104370.0,104360.0,0.26240302]
[1748767411828,0.97061255,104370.0,104360.0,0.26240194]
[1748767412381,0.97061255,104370.0,104360.0,0.25281991]
[1748767412597,0.97061255,104370.0,104360.0,0.26240192]
[1748767412768,0.97061255,104370.0,104360.0,0.2438495]
[1748767412979,0.98019348,104370.0,104360.0,0.26240191]
[1748767413191,0.98019348,104370.0,104360.0,0.24446158]
[1748767413398,0.98019348,104370.0,104360.0,0.23834509]
[1748767413611,0.98019348,104370.0,104360.0,0.27198844]
[1748767413822,0.98019348,104370.0,104360.0,0.27198881]
[1748767414029,0.99649348,104370.0,104360.0,0.27198915]
[1748767414502,1.01149348,104370.0,104360.0,0.2719888]
[1748767415055,1.01149348,104370.0,104360.0,0.27198817]
[1748767415272,1.01149348,104370.0,104360.0,0.27538711]
[1748767415477,1.01149348,104370.0,104360.0,0.27538696]
[1748767416234,0.41957,104370.0,104360.0,0.29455006]
[1748767416446,0.38827,104370.0,104360.0,0.95634119]
[1748767416647,0.005,104370.0,104360.0,0.94736854]
[1748767416854,0.005,104370.0,104360.0,0.63323691]
[1748767417065,0.005,104370.0,104360.0,0.32930763]
[1748767417270,0.003,104370.0,104360.0,0.61762327]
[1748767417483,0.03836158,104370.0,104360.0,0.61762327]
[1748767417718,0.06314269,104370.0,104360.0,0.29452399]
[1748767417919,0.07272389,104370.0,104360.0,0.29452399]
[1748767418106,0.07272389,104370.0,104360.0,0.26763452]
[1748767418107,0.06972389,104370.0,104360.0,0.26763452]
[1748767418351,0.06014269,104370.0,104360.0,0.29651219]
[1748767418582,0.06972389,104370.0,104360.0,0.287544]
[1748767418787,0.06972389,104370.0,104360.0,0.29750273]
[1748767419000,0.06972389,104370.0,104360.0,0.26090765]
[1748767419205,0.06972389,104370.0,104360.0,0.2945027]
[1748767419417,0.06972389,104370.0,104360.0,0.29750258]
[1748767419620,0.07930518,104370.0,104360.0,0.29750258]
[1748767419775,0.07930518,104370.0,104360.0,0.29950243]
[1748767419975,0.07930518,104370.0,104360.0,0.29950217]
[1748767420174,0.07930518,104370.0,104360.0,0.2995021]
[1748767420581,0.07930518,104370.0,104360.0,0.29950228]
[1748767420752,0.26135047,104370.0,104360.0,0.29950089]
[1748767421302,0.26135047,104370.0,104360.0,0.29949411]
[1748767421712,0.26135047,104370.0,104360.0,0.29949003]
[1748767421924,0.26135047,104370.0,104360.0,0.29948976]
[1748767422130,0.06972453,104370.0,104360.0,0.29948976]
[1748767422542,0.06972453,104370.0,104360.0,0.29948874]
[1748767423538,0.06972453,104370.0,104360.0,0.29948839]
[1748767424207,0.06972453,104370.0,104360.0,0.29948784]
[1748767424457,0.06972453,104370.0,104360.0,0.29947954]
[1748767424698,0.06972453,104370.0,104360.0,0.29052727]
[1748767424909,0.06972453,104370.0,104360.0,0.29948025]
[1748767425121,0.06972453,104370.0,104360.0,0.29948031]
[1748767425334,0.06972453,104370.0,104360.0,0.62257959]
[1748767425580,0.06014324,104370.0,104360.0,0.60462516]
[1748767425785,0.06014324,104370.0,104360.0,0.60462399]
[1748767426166,0.06014324,104370.0,104360.0,0.60462404]
[1748767426463,0.06014269,104370.0,104360.0,0.6046231]
[1748767427311,0.06014269,104370.0,104360.0,0.58671782]
[1748767427512,0.06014269,104370.0,104360.0,0.6046221]
[1748767427728,0.06014269,104370.0,104360.0,0.6046218]
[1748767427931,0.06014269,104370.0,104360.0,0.60462143]
[1748767428167,0.06014269,104370.0,104360.0,0.60462125]
[1748767428371,0.06014269,104370.0,104360.0,0.60462075]
[1748767428757,0.05056158,104370.0,104360.0,0.60462052]
[1748767429290,0.05056158,104370.0,104360.0,0.60462024]
[1748767429519,0.0162,104370.0,104360.0,0.60461905]
[1748767429723,0.02578065,104370.0,104360.0,0.60461887]
[1748767429940,0.03536148,104370.0,104360.0,0.60461889]
[1748767430348,0.03536148,104370.0,104360.0,0.60461872]
[1748767430754,0.03536148,104370.0,104360.0,0.6046186]
[1748767430951,0.03536148,104370.0,104360.0,0.58671615]
[1748767431159,0.03536148,104370.0,104360.0,0.60461833]
[1748767431369,0.03536148,104370.0,104360.0,0.60461817]
[1748767431579,0.03536148,104370.0,104360.0,0.59790485]
[1748767431798,0.03536148,104370.0,104360.0,0.62378817]
[1748767431944,0.0162,104370.0,104360.0,0.62378817]
[1748767432160,0.02578056,104370.0,104360.0,0.62378817]
[1748767432366,0.0353613,104370.0,104360.0,0.62378817]
[1748767432561,0.0353613,104370.0,104360.0,0.61483692]
[1748767432768,0.0353613,104370.0,104360.0,0.62078792]
[1748767432973,0.02678065,104370.0,104360.0,0.62678792]
[1748767433237,0.02678065,104370.0,104360.0,0.62478777]
[1748767433398,0.02678065,104370.0,104360.0,0.6247882]
[1748767433618,0.02678065,104370.0,104360.0,0.62878825]
[1748767433810,0.03636148,104370.0,104360.0,0.62878825]
[1748767434387,0.02678065,104370.0,104360.0,0.62878847]
[1748767434582,0.03636139,104370.0,104360.0,0.62878847]
[1748767434784,0.02016139,104370.0,104360.0,0.62878847]
[1748767435112,0.02016139,104370.0,104360.0,0.62878906]
[1748767435565,0.02016139,104370.0,104360.0,0.6287894]
[1748767435963,0.02016139,104370.0,104360.0,0.61088705]
[1748767436143,0.02016139,104370.0,104360.0,0.62879048]
[1748767436349,0.02016139,104370.0,104360.0,0.62879084]
[1748767436544,0.02016139,104370.0,104360.0,0.62879229]
[1748767437369,0.02974222,104370.0,104360.0,0.62879229]
[1748767437911,0.02974222,104370.0,104360.0,0.62879463]
[1748767438327,0.02974222,104370.0,104360.0,0.61984182]
[1748767438534,0.02016139,104370.0,104360.0,0.62208077]
[1748767438746,0.01058065,104370.0,104360.0,0.62879594]
[1748767438949,0.01058065,104370.0,104360.0,0.62879591]
[1748767439154,0.02016139,104370.0,104360.0,0.61984237]
[1748767439358,0.02016139,104370.0,104360.0,0.62879687]
[1748767439586,0.01058065,104370.0,104360.0,0.62208171]
[1748767439767,0.01058065,104370.0,104360.0,0.62880095]
[1748767439967,0.01058065,104370.0,104360.0,0.61984645]
[1748767440175,0.01058065,104370.0,104360.0,0.62880095]
[1748767440401,0.01058065,104370.0,104360.0,0.61089353]
[1748767440608,0.001,104370.0,104360.0,0.62880434]
[1748767440787,0.01058056,104370.0,104360.0,0.61984886]
[1748767440993,0.02718056,104370.0,104360.0,0.62880414]
[1748767441201,0.04258056,104370.0,104360.0,0.6288046]
[1748767441410,0.033,104370.0,104360.0,0.62880479]
[1748767441954,0.04258047,104370.0,104360.0,0.62880559]
[1748767442474,0.04258047,104370.0,104360.0,0.6198502]
[1748767442689,0.05216112,104370.0,104360.0,0.62880696]
[1748767443263,0.04258047,104370.0,104360.0,0.6288094]
[1748767443453,0.06174168,104370.0,104360.0,0.62881483]
[1748767444162,0.06174168,104370.0,104360.0,0.62881516]
[1748767444467,0.06174168,104370.0,104360.0,0.60194023]
[1748767444670,0.05216103,104370.0,104360.0,0.62882012]
[1748767445079,0.06174177,104370.0,104360.0,0.59522158]
[1748767445317,0.04258047,104370.0,104360.0,0.62882166]
[1748767445541,0.05216112,104370.0,104360.0,0.62883115]
[1748767445744,0.03556112,104370.0,104360.0,0.62883119]
[1748767445955,0.02598047,104370.0,104360.0,0.62883119]
[1748767446351,0.01058047,104370.0,104360.0,0.30574673]
[1748767446551,0.01058047,104370.0,104360.0,0.62884601]
[1748767446758,0.02016112,104370.0,104360.0,0.6288461]
[1748767446959,0.02016112,104370.0,104360.0,0.62884634]
[1748767447572,0.02016112,104370.0,104360.0,0.62885198]
[1748767447799,0.02016112,104370.0,104360.0,0.62885218]
[1748767447990,0.02016112,104370.0,104360.0,0.62885216]
[1748767448186,0.02016112,104370.0,104360.0,0.62885213]
[1748767448413,0.02016112,104370.0,104360.0,0.62885211]
[1748767449326,0.02016112,104370.0,104360.0,0.62885227]
[1748767449541,0.02016112,104370.0,104360.0,0.61988409]
[1748767449889,0.02016112,104370.0,104360.0,0.62885224]
[1748767450334,0.02016112,104370.0,104360.0,0.62885211]
[1748767450684,0.02974195,104370.0,104360.0,0.62885211]
[1748767450883,0.02974195,104370.0,104360.0,0.62212603]
[1748767451085,0.02974195,104370.0,104360.0,0.62885215]
[1748767451493,0.02974195,104370.0,104360.0,0.62885206]
[1748767451698,0.02016112,104370.0,104360.0,0.62885206]
[1748767451909,0.02016112,104370.0,104360.0,0.62885214]
[1748767452121,0.02974195,104370.0,104360.0,0.62885215]
[1748767452790,0.02974195,104370.0,104360.0,0.62885213]
[1748767453106,0.02974195,104370.0,104360.0,0.628852]
[1748767454103,0.02974195,104370.0,104360.0,0.62885199]
[1748767454236,0.02974195,104370.0,104360.0,0.62212591]
[1748767454439,0.02974195,104370.0,104360.0,0.62885221]
[1748767454813,0.02016112,104370.0,104360.0,0.62885227]
[1748767454950,0.02974195,104370.0,104360.0,0.62885227]
[1748767455158,0.03932297,104370.0,104360.0,0.62885227]
[1748767455363,0.02974195,104370.0,104360.0,0.61091591]
[1748767455607,0.03932288,104370.0,104360.0,0.6288523]
[1748767456022,0.03932288,104370.0,104360.0,0.62885233]
[1748767456484,0.03932288,104370.0,104360.0,0.62885241]
[1748767456696,0.03932288,104370.0,104360.0,0.6288527]
[1748767457147,0.03932288,104370.0,104360.0,0.62885269]
[1748767457347,0.03932288,104370.0,104360.0,0.62885273]
[1748767457791,0.02974195,104370.0,104360.0,0.62885298]
[1748767458003,0.03932269,104370.0,104360.0,0.62885298]
[1748767458223,0.04890362,104370.0,104360.0,0.62885323]
[1748767458456,0.04890362,104370.0,104360.0,0.62885332]
[1748767459174,0.04890362,104370.0,104360.0,0.62885344]
[1748767459319,0.04890362,104370.0,104360.0,0.62885358]
[1748767459725,0.03932269,104370.0,104360.0,0.62885358]
[1748767459935,0.03932269,104370.0,104360.0,0.62885411]
[1748767460136,0.03932269,104370.0,104360.0,0.62885431]
[1748767460698,0.03932269,104370.0,104360.0,0.62885463]
[1748767461336,0.04890371,104370.0,104360.0,0.62885463]
[1748767461539,0.03932269,104370.0,104360.0,0.62885507]
[1748767461782,0.2756881,104370.0,104360.0,0.06620264]
[1748767461992,0.27306098,104370.0,104360.0,0.06620264]
[1748767462198,0.27306098,104370.0,104360.0,0.06620583]
[1748767462383,0.27306098,104370.0,104360.0,0.06620384]
[1748767462560,0.21178788,104370.0,104360.0,0.06620235]
[1748767462723,0.21178788,104370.0,104360.0,0.06620234]
[1748767462919,0.21178788,104370.0,104360.0,0.06620245]
[1748767463384,0.001,104370.0,104360.0,0.26742356]
[1748767463591,0.001,104370.0,104360.0,0.93278553]
[1748767464196,0.001,104370.0,104360.0,0.9327743]
[1748767464351,0.01058056,104370.0,104360.0,0.9327743]